Cogmind - Beta 13 @@@ ROGUE MODE // 2024.04.17 @ 18:43:01 Player: monkeman Result: Destroyed by FQ-VA3(R) with Subdweller Beam Cannon Performance ------------- Evolutions (0) 0 Regions Visited (2) 400 Robots Destroyed (30) 150 Value Destroyed (646) 646 Prototype IDs (4) 80 Alien Tech Used (0) 0 Bonus (0) 0 TOTAL SCORE: 1276 Bonus ------- None Cogmind --------- Core Integrity 0/250 Matter 256/300 Energy 125/125 System Corruption 0% Temperature Cool (9) Movement Treading (320) Ox2 Location -10/Subcaves Parts ------- > --- POWER (1) -------- Light Ion Engine > --- PROPULSION (2) --- Light Treads > --- UTILITY (2) ------ High-capacity Storage Unit Weapon Shielding > --- WEAPON (2) ------- Assault Rifle Grenade Launcher > --- INVENTORY (20) --- Ion Engine Aluminum Leg Aluminum Leg Wheel Huge Storage Unit Visual Processing Unit Sensor Array Seismic Detector Hacking Suite Medium Laser Medium Laser Medium Laser Medium Laser Assault Rifle Assault Rifle Mining Claw Peak State ------------ > --- POWER ------------ Light Ion Engine > --- PROPULSION ------- Light Treads Light Treads > --- UTILITY ---------- High-capacity Storage Unit Visual Processing Unit > --- WEAPON ----------- Small Laser Particle Gun > --- INVENTORY -------- Ion Engine Light Treads Aluminum Leg Aluminum Leg Wheel Huge Storage Unit Sensor Array Seismic Detector Weapon Shielding Small Laser Small Laser Grenade Launcher Mining Claw [Rating: 10] Favorites ----------- Power Light Ion Engine Engine Light Ion Engine Propulsion Light Treads Treads Light Treads Leg Aluminum Leg Utility High-capacity Storage Unit Storage High-capacity Storage Unit Processor Visual Processing Unit Protection Weapon Shielding Weapon Assault Rifle Energy Gun Small Laser Ballistic Gun Assault Rifle Launcher Grenade Launcher Build | -11 -10 -10 ------- Run | Yrd Mat Sub Slots Evolved . | . . . Power . | . . . Propulsion . | . . . Utility . | . . . Weapon . | . . . Parts Attached 23 | 5 17 1 Power 2 | 1 1 . Engine 2 | 1 1 . Core . | . . . Reactor . | . . . Propulsion 6 | 1 5 . Treads 3 | . 3 . Leg 3 | 1 2 . Wheel . | . . . Hover . | . . . Flight . | . . . Utility 4 | 1 2 1 Device . | . . . Storage 2 | 1 1 . Processor 1 | . 1 . Hackware . | . . . Protection 1 | . . 1 Artifact . | . . . Weapon 11 | 2 9 . Energy Gun 7 | 1 6 . Energy Cannon . | . . . Ballistic Gun 2 | 1 1 . Ballistic Cannon . | . . . Launcher 2 | . 2 . Special Weapon . | . . . Impact Weapon . | . . . Slashing Weapon . | . . . Piercing Weapon . | . . . Special Melee Weapon . | . . . Unidentified Prototypes . | . . . Parts Lost 7 | . 6 1 Power 1 | . 1 . Propulsion 3 | . 2 1 Utility . | . . . Weapon 3 | . 3 . Highest Loss Streak 3 | . 3 1 To Critical Strikes . | . . . Average Slot Usage (%) 97 | . 96 100 Engine 13 | . 13 14 Treads 21 | . 20 28 Leg 4 | . 5 . Storage 14 | . 14 14 Processor 11 | . 13 . Protection 2 | . . 14 Energy Gun 13 | . 15 . Ballistic Gun 10 | . 9 14 Launcher 4 | . 2 14 Naked Turns . | . . . Heaviest Build 49 | 14 49 49 Greatest Support 40 | 10 40 40 Greatest Overweight (x) 4 | 1 4 1 Average Overweight (x) . | . . 1 Largest Inventory Capacity 20 | 8 20 20 Average Capacity 17 | 7 17 20 Most Carried 17 | 6 17 17 Average Carried 12 | 4 11 16 Final Capacity 20 | 8 20 20 Final Carried 17 | 6 17 16 Class Distribution -------------------- 94% | Mutant 5% | Scavenger-Mutant Dominant Class ---------------- Mutant | -10/Materials Mutant | -10/Subcaves Resources | -11 -10 -10 ----------- Run | Yrd Mat Sub Matter Collected 598 | 250 348 . Remotely . | . . . Salvage Created 1012 | . 982 30 Parts 63 | . 60 3 Haulers Intercepted 1 | . 1 . Recyclers Shooed 1 | . 1 . Parts Field Recycled . | . . . Retrieved Matter . | . . . Parts Self-Destructed . | . . . Prevented . | . . . Kills | -11 -10 -10 ------- Run | Yrd Mat Sub Combat Hostiles Destroyed 20 | . 19 1 Guns 15 | . 14 1 AOE 5 | . 5 . Classes Destroyed 8 | . 7 1 Worker 1 | . 1 . Hauler 1 | . 1 . Recycler 4 | . 4 . Operator 2 | . 2 . Watcher 2 | . 2 . Swarmer 6 | . 6 . Grunt 13 | . 13 . Subdweller 1 | . . 1 Best Kill Streak 6 | . 6 1 Combat Bots Only 3 | . 3 1 Max Kills in Single Turn 3 | . 3 1 Gunslinging . | . . . Exploded 2 | . 2 . Melee . | . . . Uniques/NPCs Destroyed . | . . . Combat | -11 -10 -10 -------- Run | Yrd Mat Sub Hostile Shots Fired 132 | . 127 5 Missed 30 | . 30 . Damage Taken 1187 | . 1058 129 Core 255 | . 227 28 Absorbed by Shields . | . . . Redirected to Shielding 7 | . . 7 Core Remaining (%) 100 | 100 . . Volleys Fired 83 | . 81 2 Largest 2 | . 2 2 Hottest 105 | . 105 50 Shots Fired 159 | . 155 4 Gun 153 | . 151 2 Cannon . | . . . Launcher 6 | . 4 2 Special . | . . . Kinetic 59 | . 57 2 Thermal 75 | . 75 . Explosive 6 | . 4 2 Electromagnetic 19 | . 19 . Robot Hit Streak 13 | . 13 5 Robot Miss Streak 6 | . 6 . Penetration Max . | . . . Secondary Targets 1 | . 1 . Max Gunslinging Chain 1 | . 1 . Shots Hit Robots 110 | . 107 3 Core Hits 49 | . 46 3 Critical Kills . | . . . Critical Parts Destroyed . | . . . Critical Strikes . | . . . Melee Attacks . | . . . Impact . | . . . Slashing . | . . . Piercing . | . . . Sneak Attacks . | . . . Combat Hostiles . | . . . Follow-up Attacks . | . . . Damage Inflicted 1785 | . 1676 109 Guns 1378 | . 1350 28 Cannons . | . . . Explosions 399 | . 318 81 Melee . | . . . Ramming 8 | . 8 . Kinetic 549 | . 521 28 Thermal 630 | . 630 . Explosive 399 | . 318 81 Electromagnetic 199 | . 199 . Impact . | . . . Slashing . | . . . Piercing . | . . . Highest Corruption . | . . . Average Corruption . | . . . Corruption Purged . | . . . Corruption Blocked . | . . . Overload Shots . | . . . Overflow Damage 8 | . 8 . Projectiles . | . . . Explosions 8 | . 8 . Melee . | . . . Knockbacks . | . . . Impact . | . . . Kinetic . | . . . Secondary . | . . . Self-Inflicted Damage 30 | . 19 11 Shots 2 | . 1 1 Rammed 2 | . 2 . Targets Rammed 2 | . 2 . Kicked . | . . . Crushed . | . . . Highest Temperature 217 | . 217 . Average Temperature 65 | . 65 . Received Heat Transfer 459 | . 423 36 Siege Activations . | . . . Robots Corrupted . | . . . Combat Hostiles . | . . . Parts Fried . | . . . Impact Corruptions . | . . . Robots Melted . | . . . Combat Hostiles . | . . . Parts Melted 3 | . 3 . Heat Transferred 1444 | . 1444 . Parts Sabotaged . | . . . Parts Stolen . | . . . Parts Stripped . | . . . Power Chain Reactions . | . . . Alert | -11 -10 -10 ------- Run | Yrd Mat Sub Peak Influence 285 | . 285 . Initial . | . . . Average 124 | . 131 . Maximum Alert Level 1 | . 1 . Low Security (%) 87 | 100 86 . Level 1 12 | . 13 . Level 2 . | . . . Level 3 . | . . . Level 4 . | . . . Level 5 . | . . . High Security . | . . . Max Security . | . . . Squads Dispatched 4 | . 4 . Investigation 1 | . 1 . Extermination . | . . . Reinforcement 3 | . 3 . Assault . | . . . Garrison . | . . . Intercept . | . . . Searches Triggered . | . . . Construction Impeded . | . . . Haulers Reinforced . | . . . Active Scanning Responses . | . . . Cargo Convoy Interrupts . | . . . Stealth | -11 -10 -10 --------- Run | Yrd Mat Sub Distress Signals 5 | . 5 . Communications Jammed . | . . . Distress Signals . | . . . Times Spotted 39 | . 37 2 Peak Tracking Total 4 | . 4 2 Tactical Retreats 3 | . 3 . Traps | -11 -10 -10 ------- Run | Yrd Mat Sub Traps Triggered 2 | . 2 . Indirectly . | . . . Trap Hack Attempts . | . . . Triggered . | . . . Disarmed . | . . . Reprogrammed . | . . . Reused . | . . . Traps Extracted . | . . . Installed . | . . . Triggered . | . . . Machines | -11 -10 -10 ---------- Run | Yrd Mat Sub Machines Disabled . | . . . Max in Single Turn . | . . . Machines Repaired . | . . . Machines Dismantled . | . . . Machines Sabotaged . | . . . Overloaded Fab Kills . | . . . Hacking | -11 -10 -10 --------- Run | Yrd Mat Sub Machines Accessed 5 | . 5 . Terminals 5 | . 5 . Fabricators . | . . . Repair Stations . | . . . Recycling Units . | . . . Scanalyzers . | . . . Garrison Access . | . . . Total Hacks 18 | . 18 . Successful 9 | . 9 . Failed 9 | . 9 . Catastrophic . | . . . Database Lockouts . | . . . Manual 10 | . 10 . Terminals 18 | . 18 . Fabricators . | . . . Repair Stations . | . . . Recycling Units . | . . . Scanalyzers . | . . . Garrison Access . | . . . Terminal Hacks 7 | . 7 . Part Schematic 1 | . 1 . Robot Analysis 2 | . 2 . Prototype ID Bank 2 | . 2 . Locate Traps 1 | . 1 . Zone Layout 1 | . 1 . Fabricator Hacks . | . . . Repair Station Hacks . | . . . Recycling Unit Hacks . | . . . Scanalyzer . | . . . Garrison Access Hacks . | . . . Unauthorized Hacks 2 | . 2 . Terminals 2 | . 2 . Botnet 2 | . 2 . Fabricators . | . . . Repair Stations . | . . . Recycling Units . | . . . Scanalyzers . | . . . Garrison Access . | . . . Data Cores Recovered . | . . . Used . | . . . Hacking Detections 5 | . 5 . Full Trace Events 2 | . 2 . Feedback Events . | . . . Feedback Blocked . | . . . Robot Schematics Acquired . | . . . Robots Built . | . . . Authchips . | . . . Time . | . . . Total Robot Build Rating . | . . . Part Schematics Acquired 1 | . 1 . Parts Built . | . . . Authchips . | . . . Time . | . . . Total Part Build Rating . | . . . Parts Repaired . | . . . Time . | . . . Parts Recycled . | . . . Recycled Matter . | . . . Retrieved Matter . | . . . Retrieved Components . | . . . Parts Scanalyzed . | . . . Part Schematics Acquired . | . . . Parts Damaged . | . . . Bothacking | -11 -10 -10 ------------ Run | Yrd Mat Sub Used RIF Installer . | . . . Robots Hacked . | . . . Non-combat . | . . . Combat . | . . . Robot Hacks Applied . | . . . Relay Couplers Released . | . . . Fabnet Peak Effective % . | . . . Robots Rewired . | . . . Allies Hacked . | . . . Hacks Repelled . | . . . Allies | -11 -10 -10 -------- Run | Yrd Mat Sub Total Allies . | . . . Largest Group . | . . . Highest-Rated Group . | . . . Highest-Rated Ally . | . . . Total Orders . | . . . Ally Attacks . | . . . Total Damage . | . . . Kills . | . . . Allies Corrupted . | . . . Allies Melted . | . . . Intel | -11 -10 -10 ------- Run | Yrd Mat Sub Robot Analysis Total 2 | . 2 . Derelict Logs Recovered 1 | . . 1 Drone Launches . | . . . Drone Recoveries . | . . . Exploration | -11 -10 -10 ------------- Run | Yrd Mat Sub Turns Passed 1884 | 83 1542 259 Spaces Moved 682 | 43 538 101 Core 6 | 6 . . Treads 468 | . 367 101 Legs 208 | 37 171 . Wheels . | . . . Hover . | . . . Flight . | . . . Fastest Speed 50 | 50 120 240 Average Speed 216 | 163 216 240 Slowest Speed 400 | 190 400 240 Overloaded Moves . | . . . Propulsion Burnouts . | . . . Robots Hopped . | . . . Cave-ins Triggered . | . . . Exploration Rate (%) 32 | 4 81 12 Regions Visited 2 Branch Regions 1 Pre-discovered Areas . | . . . Known Exits Taken . | . . . Unknown Exits Taken 2 | 1 1 . Scrap Searched . | . . . Spaces Dug . | . . . Terrain Destroyed 27 | . 16 11 Melee . | . . . Projectile . | . . . AOE 27 | . 16 11 Terrain Rammed . | . . . Walls Destroyed . | . . . Machines Disabled . | . . . Actions | -11 -10 -10 --------- Run | Yrd Mat Sub Total 928 | 53 759 116 Wait 103 | . 92 11 Move 680 | 42 537 101 Hop . | . . . Pick Up 29 | 6 23 . Fast Attach 7 | 5 2 . Attach 7 | . 6 1 Detach . | . . . Swap 9 | . 9 . Drop 8 | . 7 1 Fire 83 | . 81 2 Melee . | . . . Ram . | . . . Kick . | . . . Crush 2 | . 2 . Escape Stasis . | . . . Rewire . | . . . Trap . | . . . Miscellaneous . | . . . Route ------- -11/Scrapyard -10/Materials (discovered 5 exits: [*Mat x3] / [*Min] / [*Sub]) -10/Subcaves History --------- Turn | Location | Event 11 | -11/Scrapyard | Discovered new exit (range 16) 84 | -11/Scrapyard | Entered Materials 309 | -10/Materials | Build established: Mutant 313 | -10/Materials | Discovered new exit (range 8) 476 | -10/Materials | Lost 3 parts (1p1n1w) 744 | -10/Materials | Core integrity fell below 50% 884 | -10/Materials | Discovered new exit (range 4) 1301 | -10/Materials | Discovered new exit (range 8) 1356 | -10/Materials | Discovered new exit (range 18) 1393 | -10/Materials | Core integrity fell below 20% 1609 | -10/Materials | Discovered new exit (range 7) 1626 | -10/Materials | Entered Subcaves 1722 | -10/Subcaves | Learned location of 1 exit from Materials 1885 | -10/Subcaves | Destroyed by FQ-VA3(R) with Subdweller Beam Cannon Last Messages --------------- 01545_ The unstable cave ceiling collapses. 01549_ K-01 Serf cleans the Purification Channel. 01609_ EXIT=FOUND LOCATION=UNKNOWN AMBIENT_HEAT=-10 GOAL=ESCAPE 01626_ Discarded Visual Processing Unit. 01647_ EN-WY8(u) builds Twisted Machinery. 01687_ TN-1HX(O) collects matter. 01692_ EN-WY8(u) builds Twisted Machinery. 01693_ TN-1HX(O) collects matter. 01694_ EN-WY8(u) builds Twisted Machinery. 01697_ TN-1HX(O) collects matter. 01704_ EN-WY8(u) builds Twisted Machinery. 01722_ Acquired derelict log, extracted data. Data stored: Materials exits (x1). 01734_ EN-WY8(u) builds Twisted Machinery. 01883_ Lgt. Treads destroyed. 01884_ D5-283(R) destroyed. Map ----- +----------------------------------------------------+ | ??????????????????????????????# " " #####?# #??? | | ????????????????????????????### # ### ##??# | | ????????????????????????????# ### #?? | | ???????????????????????##???# ## | | ???????????????????????# #???# | | ???????????????????????# ##?# | | ??????????????????????## #?# | | ??????????????????????# #?# ## | | ??????????????????????# #??# ##? | | ??????????????????????# ##?# ###?? | | ??????????????????????# #?## ###???? | | ???????????????????????# #?## ###?????? | | ???????????????????????# ### ##???????? | | ??????????????????????## ## ## #????????? | | ??????????????????????# ## ##????????? | | ??????????????????????# # ####?????????? | | ??????????????????????# ###????????????? | | ??????????????????????# #??????????????? | | ??????????????????????# #??????????????? | | ??????????????????????# ######?? ??????????? | | ??????????????????????# ###?#?## ??????????? | | ??????????????????????# ### # ?????????? | | ??????????????????????# # ????????? | | ?????????????????????## R ????????? | | ?????????????????????# =%| ????????? | | ?????????????????????# @ & ????????? | | ?????????????????????# #### ## ????????? | | ?????????????????????#####?????? ##?????????????? | | ????????????????????????????????? #??????????????? | | ??????????????????????????????????#??????????????? | | ?????????????????????????????????????????????????? | | ?????????????????????????????????????????????????? | | ?????????????????????????????????????????????????? | | ?????????????????????????????????????????????????? | | ?????????????????????????????????????????????????? | | ?????????????????????????????????????????????????? | | ?????????????????????????????????????????????????? | | ?????????????????????????????????????????????????? | | ?????????????????????????????????????????????????? | | ?????????????????????????????????????????????????? | | ?????????????????????????????????????????????????? | | ?????????????????????????????????????????????????? | | ?????????????????????????????????????????????????? | | ?????????????????????????????????????????????????? | | ?????????????????????????????????????????????????? | | ?????????????????????????????????????????????????? | | ?????????????????????????????????????????????????? | | ?????????????????????????????????????????????????? | | ?????????????????????????????????????????????????? | | ?????????????????????????????????????????????????? | +----------------------------------------------------+ Best States ------------- Heat Dissipation 25 Energy Generation 10 Energy Capacity 250 Matter Stores 300 Matter Capacity 300 Sight Range 18 Terrain Scan Density 10 Weapon Shielding 33 Evasion (%) 55 Recoil Reduction 2 Item Schematics ----------------- Huge Storage Unit | -10/Materials | Hacked Robot Schematics ------------------ None Fabricated ------------ Nothing Alien Tech Used ----------------- None Achievements -------------- None Challenges ------------ None Game ------ Seed WaveMiniDiverter Manual? 0 Play Time 00:09:17 Cumulative 33.0 hours Start 2024.04.17 @ 18:34:20 End 2024.04.17 @ 18:43:01 Sessions 1 Manual Loads 0 Difficulty Rogue Special Mode None Game No. 43 Rogue 43 Adventurer 0 Explorer 0 Win Type - Total 1 Types 1/0/0/0/0/0/0/0/0 Lore% 19 Gallery% 36 Achievement% 26 Wizard Run 0 Options --------- Layout 1 ASCII 0 Keyboard 0 Movement Mouse Keybinds 0 Fullscreen 1 Font 24/Smallcaps Map View 50x35 Zoom Use 0% Tactical HUD 1 Map Filters NONE Filters NONE Steam 1 RUN: 088a27b7-a7ea-4cb6-a4ed-4c6d25545c17